{"text_format":"2","workbook":"xlsx","n_sheets":1,"sheets":["Tabelle1"],"not_rendered":{"charts":0,"images":0,"macros":0,"external_links":0,"defined_names":0,"comments":0,"pivot_tables":0},"unopened":[],"bounds":{"document_bytes":16777216,"sheet_cells":100000,"run_cost":"one","rows_first":2000,"rows_last":500,"rows_between":2000,"halvings":0,"cell_chars":16384,"cell_head_chars":4096},"cells_cut":0,"cells_raw":0,"read":"whole","date_system":"1900"}

{"sheet":"Tabelle1","index":0,"n_rows":100,"n_cols":5,"rows_kept":100,"cut":false,"hidden":false,"merged":[]}
["Notenberechnung Master Informatik"]
[]
["Regeln für Wahlpflichtmodule, insgesamt 60 ECTS (wird hier nicht geprüft):"]
["· aus mind. drei Säulen: pro Säule mindestens 10 ECTS, höchstens 30 ECTS"]
["· bei Modulen aus vier Säulen: Untergrenze von 10 ECTS kann in einer Säule unterschritten werden"]
["· in mind. 2 Vertiefungsrichtungen mind. 15 ECTS"]
[]
["Hinweise zum Programm:"]
["· ECTS-Punkte können eingegeben werden; gewertet wird erst, sobald eine Note eingetragen ist (Noten werden nicht geprüft, alles fließt ein)"]
["· Endnote und Gesamtnoten der Säulen werden auf die erste Nachkommastelle geschnitten"]
["· Punktegrenzen (in den Säulen und gesamt) werden nicht geprüft – wenn ein Fach nicht einfließen soll → 0 ECTS!"]
["· Trotz bestem Wissen und Gewissen: Keine Garantie, dass alles fehlerfrei ist :-)"]
[]
["Übersicht Master (120 ECTS)"]
[null,null,null,"ECTS-Punkte","Note"]
["Theorie-Säule",null,null,{"$f":"D41","v":0},{"$f":"E41","v":"n.a."}]
["Softwareorientiert",null,null,{"$f":"D56","v":0},{"$f":"E56","v":"n.a."}]
["Systemorientiert",null,null,{"$f":"D71","v":0},{"$f":"E71","v":"n.a."}]
["Anwendungsorientiert",null,null,{"$f":"D86","v":0},{"$f":"E86","v":"n.a."}]
["Nebenfach",null,null,{"$f":"D100","v":0},{"$f":"E100","v":"n.a."}]
["Projekt",null,null,10]
["Seminar",null,null,5]
["Masterarbeit",null,null,30]
[]
["Gesamt Master:",null,null,{"$f":"SUM(D16:D20) + IF(E21<>0,10,0) + IF(E22<>0,5,0) + IF(E23<>0,30,0)","v":0},{"$f":"IF(D25=0,\"n.a.\",TRUNC(((IF(E16<>\"n.a.\",D16*E16,0) + IF(E17<>\"n.a.\",D17*E17,0) + IF(E18<>\"n.a.\",D18*E18,0) + IF(E19<>\"n.a.\",D19*E19,0) + IF(E20<>\"n.a.\",D20*E20,0) + IF(E21<>0,D21*E21,0) + IF(E22<>0,D22*E22,0) + IF(E23<>0,D23*E23,0))/D25),1))","v":"n.a."}]
[]
[]
["Säule der theoretisch orientierten Vertiefungsrichtungen"]
[null,null,null,"ECTS-Punkte","Note"]
["Modul 1",null,null,0]
["Modul 2",null,null,0]
["Modul 3",null,null,0]
["Modul 4",null,null,0]
["Modul 5",null,null,0]
["Modul 6",null,null,0]
["Modul 7",null,null,0]
["Modul 8",null,null,0]
["Modul 9",null,null,0]
["Modul 10",null,null,0]
[]
["Gesamt Theorie-Säule:",null,null,{"$f":"IF(E30<>0,D30,0) + IF(E31<>0,D31,0) + IF(E32<>0,D32,0) + IF(E33<>0,D33,0) + IF(E34<>0,D34,0) + IF(E35<>0,D35,0)  + IF(E36<>0,D36,0) + IF(E37<>0,D37,0) + IF(E38<>0,D38,0) + IF(E39<>0,D39,0)","v":0},{"$f":"IF(D41=0,\"n.a.\",TRUNC(((D30*E30 + D31*E31 + D32*E32 + D33*E33 + D34*E34 + D35*E35 + D36*E36 + D37*E37 + D38*E38 + D39*E39)/D41),1))","v":"n.a."}]
[]
["Säule der softwareorientierten Vertiefungsrichtungen"]
[null,null,null,"ECTS-Punkte","Note"]
["Modul 1",null,null,0]
["Modul 2",null,null,0]
["Modul 3",null,null,0]
["Modul 4",null,null,0]
["Modul 5",null,null,0]
["Modul 6",null,null,0]
["Modul 7",null,null,0]
["Modul 8",null,null,0]
["Modul 9",null,null,0]
["Modul 10",null,null,0]
[]
["Gesamt softwareorientierte Säule:",null,null,{"$f":"IF(E45<>0,D45,0) + IF(E46<>0,D46,0) + IF(E47<>0,D47,0) + IF(E48<>0,D48,0) + IF(E49<>0,D49,0) + IF(E50<>0,D50,0)  + IF(E51<>0,D51,0) + IF(E52<>0,D52,0) + IF(E53<>0,D53,0) + IF(E54<>0,D54,0)","v":0},{"$f":"IF(D56=0,\"n.a.\",TRUNC(((D45*E45 + D46*E46 + D47*E47 + D48*E48 + D49*E49 + D50*E50 + D51*E51 + D52*E52 + D53*E53 + D54*E54)/D56),1))","v":"n.a."}]
[]
["Säule der systemorientierten Vertiefungsrichtungen"]
[null,null,null,"ECTS-Punkte","Note"]
["Modul 1",null,null,0]
["Modul 2",null,null,0]
["Modul 3",null,null,0]
["Modul 4",null,null,0]
["Modul 5",null,null,0]
["Modul 6",null,null,0]
["Modul 7",null,null,0]
["Modul 8",null,null,0]
["Modul 9",null,null,0]
["Modul 10",null,null,0]
[]
["Gesamt systemorientierte Säule:",null,null,{"$f":"IF(E60<>0,D60,0) + IF(E61<>0,D61,0) + IF(E62<>0,D62,0) + IF(E63<>0,D63,0) + IF(E64<>0,D64,0) + IF(E65<>0,D65,0)  + IF(E66<>0,D66,0) + IF(E67<>0,D67,0) + IF(E68<>0,D68,0) + IF(E69<>0,D69,0)","v":0},{"$f":"IF(D71=0,\"n.a.\",TRUNC(((D60*E60 + D61*E61 + D62*E62 + D63*E63 + D64*E64 + D65*E65 + D66*E66 + D67*E67 + D68*E68 + D69*E69)/D71),1))","v":"n.a."}]
[]
["Säule der anwendungsorientierten Vertiefungsrichtungen"]
[null,null,null,"ECTS-Punkte","Note"]
["Modul 1",null,null,0]
["Modul 2",null,null,0]
["Modul 3",null,null,0]
["Modul 4",null,null,0]
["Modul 5",null,null,0]
["Modul 6",null,null,0]
["Modul 7",null,null,0]
["Modul 8",null,null,0]
["Modul 9",null,null,0]
["Modul 10",null,null,0]
[]
["Gesamt anwendungsorientierte Säule:",null,null,{"$f":"IF(E75<>0,D75,0) + IF(E76<>0,D76,0) + IF(E77<>0,D77,0) + IF(E78<>0,D78,0) + IF(E79<>0,D79,0) + IF(E80<>0,D80,0)  + IF(E81<>0,D81,0) + IF(E82<>0,D82,0) + IF(E83<>0,D83,0) + IF(E84<>0,D84,0)","v":0},{"$f":"IF(D86=0,\"n.a.\",TRUNC(((D75*E75 + D76*E76 + D77*E77 + D78*E78 + D79*E79 + D80*E80 + D81*E81 + D82*E82 + D83*E83 + D84*E84)/D86),1))","v":"n.a."}]
[]
[]
["Nebenfach (Soll: 15 ECTS)"]
[null,null,null,"ECTS-Punkte","Note"]
["Modul 1",null,null,0]
["Modul 2",null,null,0]
["Modul 3",null,null,0]
["Modul 4",null,null,0]
["Modul 5",null,null,0]
["Modul 6",null,null,0]
["Modul 7",null,null,0]
["Modul 8",null,null,0]
[]
["Gesamt Nebenfach:",null,null,{"$f":"IF(E91<>0,D91,0) + IF(E92<>0,D92,0) + IF(E93<>0,D93,0) + IF(E94<>0,D94,0) + IF(E95<>0,D95,0)  + IF(E96<>0,D96,0) + IF(E97<>0,D97,0) + IF(E98<>0,D98,0)","v":0},{"$f":"IF(D100=0,\"n.a.\",TRUNC(((D91*E91 + D92*E92 + D93*E93 + D94*E94 + D95*E95 + D96*E96 + D97*E97 + D98*E98)/D100),1))","v":"n.a."}]